bitfinex-derivatives/quotes_ETHF0:USTF0_20250217
["timestamp","ask_amount","ask_price","bid_price","bid_amount"]
[1739772510367,40.8,2681.6,2681.2,3.2078]
[1739772510564,0.7458,2681.3,2681.2,3.2078]
[1739772511071,40.8,2681.6,2681.2,3.2078]
[1739772511266,41.54572,2681.6,2681.2,3.2078]
[1739772511472,2.495,2681.7,2681.3,0.5398]
[1739772511770,0.74575,2681.5,2681.3,0.5398]
[1739772511971,0.5537,2681.8,2681.3,0.5398]
[1739772512572,0.74577,2681.4,2681.3,0.5398]
[1739772512868,0.5537,2681.8,2681.3,0.5398]
[1739772513462,1.29937,2681.8,2681.5,3.2078]
[1739772513662,0.74572,2681.6,2681.5,3.2078]
[1739772519777,0.5537,2681.8,2681.5,3.2078]
[1739772519976,0.74572,2681.6,2681.5,3.2078]
[1739772521172,3.78815,2681.9,2681.5,3.2078]
[1739772521368,0.5475,2681.9,2681.5,3.2078]
[1739772521870,0.74569,2681.7,2681.5,3.2078]
[1739772522066,0.5475,2681.9,2681.5,3.2078]
[1739772522271,0.74571,2681.7,2681.5,3.2078]
[1739772522475,0.74572,2681.6,2681.5,3.2078]
[1739772522663,0.5475,2681.9,2681.5,3.2078]
[1739772522868,0.74572,2681.6,2681.5,3.2078]
[1739772523075,0.5475,2681.9,2681.5,3.2078]
[1739772523265,0.74572,2681.6,2681.5,3.2078]
[1739772523470,0.5475,2681.9,2681.5,3.2078]
[1739772523674,0.74568,2681.8,2681.5,3.2078]
[1739772523876,0.74572,2681.6,2681.5,3.2078]
[1739772525078,0.00270489,2682.6,2681.5,3.2078]
[1739772525276,0.7456,2682.0,2681.9,3.2078]
[1739772526073,40.80559775,2682.3,2681.9,3.2078]
[1739772526372,0.74559,2682.1,2681.9,3.2078]
[1739772526577,40.80559775,2682.3,2681.9,3.2078]
[1739772526769,0.7456,2682.0,2681.9,3.2078]
[1739772527175,0.00559775,2682.3,2681.9,3.2078]
[1739772527371,0.00559775,2682.3,2682.2,3.2078]
[1739772529579,0.00559775,2682.3,2682.2,3.95335]
[1739772531979,0.00559775,2682.3,2682.2,3.2078]
[1739772532175,0.75111775,2682.3,2682.2,3.2078]
[1739772533880,0.7456,2682.0,2681.9,3.2078]
[1739772534881,0.74559,2682.1,2681.9,3.2078]
[1739772535077,4.2114,2682.2,2681.9,3.2078]
[1739772535283,4.95696,2682.2,2681.9,3.2078]
[1739772535487,4.2114,2682.2,2681.9,3.2078]
[1739772535686,0.74559,2682.1,2681.9,3.2078]
[1739772535885,4.95695,2682.2,2681.9,3.2078]
[1739772536085,4.2114,2682.2,2681.9,3.2078]
[1739772536381,4.95696,2682.2,2681.9,3.2078]
[1739772536585,4.2114,2682.2,2681.9,3.2078]
[1739772537379,0.7456,2682.0,2681.9,3.2078]
[1739772538480,2.494,2682.0,2681.9,3.2078]
[1739772540288,1.1615,2682.2,2681.9,3.2078]
[1739772540490,1.7385,2682.2,2681.9,3.2078]
[1739772540687,0.74565,2681.9,2681.6,3.2078]
[1739772540989,0.74564,2681.9,2681.6,3.2078]
[1739772541190,1.7385,2682.2,2681.6,3.2078]
[1739772541384,2.48407,2682.2,2681.6,3.95351]
[1739772541584,1.7385,2682.2,2681.9,3.2078]
[1739772541793,4.2325,2682.2,2681.9,3.2078]
[1739772542088,4.97805,2682.2,2681.9,3.2078]
[1739772542288,3.6555,2682.2,2681.9,3.2078]
[1739772542586,0.7456,2682.0,2681.9,3.2078]
[1739772543182,4.40107,2682.2,2681.9,3.2078]
[1739772543386,0.74559,2682.1,2681.9,3.2078]
[1739772543588,3.6555,2682.2,2681.9,3.2078]
[1739772543789,0.7456,2682.0,2681.9,3.2078]
[1739772544185,3.6555,2682.2,2681.9,3.2078]
[1739772544380,0.7456,2682.0,2681.9,3.2078]
[1739772545193,3.6555,2682.2,2681.9,3.2078]
[1739772545799,0.7456,2682.0,2681.9,3.2078]
[1739772546304,1.1615,2682.2,2681.9,3.2078]
[1739772546500,0.7456,2682.0,2681.9,3.2078]
[1739772548007,2.494,2682.1,2681.5,3.2078]
[1739772548207,0.74572,2681.6,2681.5,3.2078]
[1739772549106,2.494,2681.6,2681.2,3.2078]
[1739772549306,0.5887,2681.5,2681.2,3.2078]
[1739772549506,0.74578,2681.4,2681.2,3.2078]
[1739772549902,0.5887,2681.5,2681.2,3.2078]
[1739772550805,1.33445,2681.5,2681.2,3.2078]
[1739772551005,0.5887,2681.5,2681.2,3.2078]
[1739772551307,1.33447,2681.5,2681.2,3.2078]
[1739772551608,0.5887,2681.5,2681.2,3.2078]
[1739772551804,0.593,2681.7,2681.2,6.48675773]
[1739772551997,0.74572,2681.6,2681.5,3.2078]
[1739772553098,6.74572,2681.6,2680.9,3.2078]
[1739772553299,0.7459,2681.0,2680.9,3.2078]
[1739772554508,5.00357,2681.1,2680.9,3.2078]
[1739772554710,0.74588,2681.0,2680.9,3.2078]
[1739772555610,0.74591,2680.9,2680.8,0.00559775]
[1739772556013,4.02486773,2680.9,2680.8,0.00559775]
[1739772556212,3.27895773,2680.9,2680.3,3.2078]
[1739772556515,0.74601,2680.6,2680.3,3.2078]
[1739772556709,2.494,2680.7,2680.3,3.2078]
[1739772557315,3.23998,2680.7,2680.3,3.2078]
[1739772557509,2.494,2680.7,2680.3,3.2078]
[1739772557712,2.494,2680.7,2680.6,3.2078]
[1739772558112,3.23997,2680.7,2680.6,3.2078]
[1739772558315,43.294,2680.7,2680.6,3.2078]
[1739772558909,3.23997,2680.7,2680.6,3.2078]
[1739772559818,2.494,2680.7,2680.6,3.2078]
[1739772560209,2.494,2680.7,2680.3,3.2078]
[1739772560404,1.30791,2680.6,2680.3,3.2078]
[1739772560616,0.5619,2680.6,2680.3,3.2078]
[1739772561011,4.58685773,2680.6,2680.3,3.2078]
[1739772561219,0.5619,2680.6,2680.3,3.2078]
[1739772561919,0.74602,2680.5,2680.3,3.2078]
[1739772562110,0.74605,2680.4,2680.3,3.2078]
[1739772562416,0.5624,2680.4,2680.3,3.2078]
[1739772563118,0.5619,2680.6,2680.3,3.2078]
[1739772563319,3.0569,2680.6,2680.3,3.2078]
[1739772563521,0.74603,2680.5,2680.3,3.2078]
[1739772563717,3.0569,2680.6,2680.3,3.2078]
[1739772564419,0.74605,2680.4,2680.3,3.2078]
[1739772565018,6.33585773,2680.6,2680.3,3.2078]
[1739772565421,0.74605,2680.4,2680.3,3.2078]
[1739772565623,6.33585773,2680.6,2680.3,3.2078]
[1739772565919,0.74605,2680.4,2680.3,3.2078]
[1739772566123,6.33585773,2680.6,2680.3,3.2078]
[1739772567020,3.0569,2680.6,2680.3,3.2078]
[1739772567626,2.495,2680.6,2680.3,3.2078]
[1739772567820,3.24098,2680.7,2680.3,3.2078]
[1739772568019,0.74599,2680.6,2680.3,3.2078]
[1739772568620,2.495,2680.7,2680.3,3.95387]
[1739772568828,2.495,2680.7,2680.3,3.2078]
[1739772569124,0.74597,2680.7,2680.3,3.2078]
[1739772569324,0.74597,2680.7,2680.6,3.2078]
[1739772569325,3.24097,2680.7,2680.6,3.2078]
[1739772569726,2.495,2680.7,2680.6,3.2078]
[1739772569927,3.24097,2680.7,2680.6,3.2078]
[1739772570225,2.495,2680.7,2680.6,3.2078]
[1739772570622,2.495,2680.7,2680.3,3.2078]
[1739772570824,0.74601,2680.6,2680.2,0.00559775]
[1739772571022,0.74601,2680.6,2680.5,3.2078]
[1739772571224,2.495,2680.7,2680.5,3.2078]
[1739772571827,0.74599,2680.6,2680.5,3.2078]
[1739772572215,4.02494773,2680.6,2680.5,3.2078]
[1739772573020,4.02494773,2680.6,2680.2,3.21339775]
[1739772573325,0.74603,2680.5,2680.2,3.21339775]
[1739772573520,3.27895773,2680.6,2680.2,3.21339775]
[1739772573718,0.74603,2680.5,2680.2,3.21339775]
[1739772574024,3.27895773,2680.6,2680.2,3.21339775]
[1739772574621,0.74606,2680.4,2680.2,3.21339775]
[1739772575321,3.27895773,2680.6,2680.2,3.21339775]
[1739772575516,1.1135,2680.5,2680.2,3.21339775]
[1739772576124,1.85953,2680.5,2680.2,3.21339775]
[1739772576324,1.1135,2680.5,2680.2,3.21339775]
[1739772576525,1.85953,2680.5,2680.2,3.21339775]
[1739772576827,1.1135,2680.5,2680.2,3.21339775]
[1739772577128,0.74608,2680.3,2680.2,3.21339775]
[1739772577927,3.24108,2680.3,2680.2,3.21339775]
[1739772578929,5.77395773,2680.3,2679.7,3.2078]
[1739772579131,0.5935,2680.2,2679.7,3.2078]
[1739772579320,0.74618,2680.0,2679.7,3.2078]
[1739772579628,1.33961,2680.2,2679.7,3.2078]
[1739772579829,1.33962,2680.2,2679.7,3.2078]
[1739772580025,0.5935,2680.2,2679.7,3.21339775]
[1739772580224,0.74615,2680.1,2679.7,3.21339775]
[1739772580425,2.501,2680.1,2679.7,3.95963775]
[1739772580626,2.501,2680.1,2679.7,3.21339775]
[1739772580825,2.501,2680.1,2679.7,3.95963775]
[1739772581126,2.501,2680.1,2679.7,3.21339775]
[1739772581626,3.24714,2680.1,2679.7,3.95962775]
[1739772581822,3.24714,2680.1,2679.7,3.21339775]
[1739772582020,3.24714,2680.1,2679.7,3.95963775]
[1739772582925,2.501,2680.1,2679.8,0.74621]
[1739772583327,2.501,2680.1,2679.7,3.21339775]
[1739772583822,2.501,2680.1,2679.8,0.74621]
[1739772584022,3.24716,2680.1,2679.8,0.74621]
[1739772584726,0.74616,2680.0,2679.8,0.74621]
[1739772584929,3.27895773,2680.0,2679.7,0.00559775]
[1739772585125,0.74622,2679.8,2679.7,0.00559775]
[1739772587121,9.2078,2679.8,2678.8,23.8868]
[1739772587325,3.27895773,2679.3,2678.8,23.8868]
[1739772587522,0.74643,2679.1,2678.8,3.2078]
[1739772587726,1.7008,2679.2,2678.8,3.2078]
[1739772587919,0.74643,2679.1,2678.8,3.2078]
[1739772588519,1.70639775,2679.2,2678.8,3.2078]
[1739772588716,0.74644,2679.0,2678.8,3.2078]
[1739772589026,0.74643,2679.1,2678.8,3.2078]
[1739772589225,0.74644,2679.0,2678.8,3.2078]
[1739772589428,1.70639775,2679.2,2678.8,3.2078]
[1739772589927,0.74646,2679.0,2678.8,3.2078]
[1739772590122,1.70639775,2679.2,2678.7,0.00559775]
[1739772590331,0.74648,2678.9,2678.7,0.00559775]
[1739772590722,3.27895773,2679.0,2678.7,0.00559775]
[1739772590923,0.74648,2678.9,2678.7,0.00559775]
[1739772591320,4.91419775,2679.2,2678.8,3.2078]
[1739772591526,0.74643,2679.1,2678.8,3.2078]
[1739772591726,4.91419775,2679.2,2678.7,0.00559775]
[1739772592121,3.27895773,2679.0,2678.7,0.00559775]
[1739772592325,0.7465,2678.8,2678.7,0.00559775]
[1739772592733,6.45028,2678.9,2678.7,0.00559775]
[1739772592931,5.7038,2678.9,2678.7,0.00559775]
[1739772593136,3.2078,2678.9,2678.7,0.00559775]
[1739772593828,5.78895773,2679.0,2678.7,0.00559775]
[1739772594027,6.53540773,2679.0,2678.7,0.00559775]
[1739772594232,5.78895773,2679.0,2678.7,0.00559775]
[1739772596239,5.78895773,2679.0,2678.8,0.74648]
[1739772596433,1.70639775,2679.2,2678.8,0.74649]
[1739772596739,1.70639775,2679.2,2679.0,0.74644]
[1739772596740,1.14089775,2679.2,2679.0,0.74644]
[1739772597039,1.14089775,2679.2,2678.9,3.2078]
[1739772597431,1.14089775,2679.2,2678.9,3.95425]
[1739772598237,1.14089775,2679.2,2679.0,0.74643]
[1739772598835,1.14089775,2679.2,2678.9,3.2078]
[1739772599034,1.14089775,2679.2,2678.9,3.95425]
[1739772599234,0.00559775,2679.2,2678.9,3.2078]
[1739772599435,0.00559775,2679.2,2679.1,0.74641]
[1739772600534,0.00559775,2679.2,2678.9,3.2078]
[1739772601435,0.00559775,2679.2,2679.1,0.74641]
[1739772603833,3.7673,2680.1,2679.6,0.74626]
[1739772604035,2.505,2680.0,2679.5,3.2078]
[1739772604236,0.74627,2679.6,2679.5,3.2078]
[1739772605045,3.27895773,2679.6,2679.0,3.2078]
[1739772605240,1.7099,2679.5,2679.0,3.2078]
[1739772605644,0.74641,2679.1,2679.0,3.2078]
[1739772605840,0.74639,2679.2,2679.0,3.2078]
[1739772606836,0.74638,2679.3,2679.0,3.2078]
[1739772607041,1.7099,2679.5,2679.0,3.2078]
[1739772607042,0.74635,2679.4,2679.0,3.2078]
[1739772607451,0.74636,2679.3,2679.0,3.2078]
[1739772607744,1.7099,2679.5,2679.0,3.2078]
[1739772607936,0.74634,2679.4,2679.0,3.95424]
[1739772608141,1.7099,2679.5,2679.0,3.2078]
[1739772608342,0.74634,2679.4,2679.0,3.2078]
[1739772608744,0.74634,2679.4,2679.0,3.95424]
[1739772608945,1.7099,2679.5,2679.0,3.95424]
[1739772609143,2.45622,2679.5,2679.0,3.95424]
[1739772609341,1.7099,2679.5,2679.0,3.2078]
[1739772609546,1.7099,2679.5,2679.2,0.74637]
[1739772610851,1.7099,2679.5,2679.1,0.74639]
[1739772611046,1.7099,2679.5,2679.0,3.2078]
[1739772611243,1.1214,2679.5,2679.0,3.2078]
[1739772611447,1.1214,2679.5,2679.3,0.74636]
[1739772611648,1.1214,2679.5,2679.4,0.74633]
[1739772611946,1.1214,2679.5,2679.0,5.07387]
[1739772611947,1.1214,2679.5,2679.0,3.2078]
[1739772612448,1.1214,2679.5,2679.3,0.74635]
[1739772612650,1.1214,2679.5,2679.3,0.74634]
[1739772614651,1.86771,2679.5,2679.2,0.74638]
[1739772614948,1.1214,2679.5,2679.0,3.2078]
[1739772615142,1.86771,2679.5,2679.2,0.74638]
[1739772615342,1.1214,2679.5,2679.2,0.74638]
[1739772615547,0.74633,2679.4,2679.0,3.95423]
[1739772615750,0.74633,2679.4,2679.0,3.2078]
[1739772615951,1.1214,2679.5,2679.0,3.2078]
[1739772615952,0.74636,2679.3,2679.0,3.2078]
[1739772616157,1.1214,2679.5,2679.0,3.2078]
[1739772616449,0.74636,2679.3,2679.0,3.2078]
[1739772616644,0.74633,2679.4,2679.0,3.2078]
[1739772616842,0.74636,2679.3,2679.0,3.2078]
[1739772617346,0.74636,2679.3,2679.0,3.95423]
[1739772617544,0.74633,2679.4,2679.0,3.95423]
[1739772617744,0.74636,2679.3,2679.0,3.95423]
[1739772618052,1.1214,2679.5,2679.0,3.2078]
[1739772618353,0.74634,2679.4,2679.1,0.74641]
[1739772618552,1.1214,2679.5,2679.0,3.2078]
[1739772618954,1.1214,2679.5,2679.2,0.74637]
[1739772619155,1.1214,2679.5,2679.3,0.74635]
[1739772619450,1.1214,2679.5,2679.2,0.74636]
[1739772619649,1.86771,2679.5,2679.2,0.74638]
[1739772619853,1.1214,2679.5,2679.0,3.2078]
[1739772620046,1.1214,2679.5,2679.3,0.74635]
[1739772620353,1.1214,2679.5,2679.3,0.74634]
[1739772620651,3.79909775,2679.8,2679.0,3.2078]
[1739772620949,0.00559775,2679.8,2679.5,3.2078]
[1739772621148,0.74627,2679.6,2679.5,3.2078]
[1739772621453,0.7463,2679.6,2679.2,3.2078]
[1739772621653,1.85331,2679.5,2679.2,3.2078]
[1739772621844,0.5739,2679.4,2679.2,3.2078]
[1739772622045,0.74636,2679.3,2679.2,3.2078]
[1739772622246,1.32024,2679.4,2679.2,3.2078]
[1739772622647,0.5739,2679.4,2679.2,3.2078]
[1739772622946,0.5739,2679.4,2679.2,3.95417]
[1739772623150,3.95963775,2679.8,2679.2,3.95417]
[1739772623350,4.53353775,2679.8,2679.3,0.5623]
[1739772623552,3.78729775,2679.8,2679.3,0.5623]
[1739772623852,0.74625,2679.7,2679.3,0.5623]
[1739772624154,3.78729775,2679.8,2679.5,0.74629]
[1739772624350,0.57949775,2679.8,2679.5,3.2078]
[1739772624551,0.57949775,2679.8,2679.5,3.95409]
[1739772625555,1.32572775,2679.8,2679.5,3.2078]
[1739772625758,0.57949775,2679.8,2679.5,3.95409]
[1739772626152,0.57949775,2679.8,2679.5,3.2078]
[1739772626457,0.57949775,2679.8,2679.7,0.74624]
[1739772626958,0.57949775,2679.8,2679.6,0.74626]
[1739772627152,0.57949775,2679.8,2679.5,3.2078]
[1739772627563,0.57949775,2679.8,2679.7,0.74624]
[1739772627856,0.57949775,2679.8,2679.6,0.74625]
[1739772628055,0.57949775,2679.8,2679.5,3.2078]
[1739772628258,0.00559775,2679.8,2679.7,0.74624]
[1739772630561,0.00559775,2679.8,2679.6,0.5938]
[1739772630780,0.00559775,2679.8,2679.6,1.34005]
[1739772630960,3.056,2680.8,2679.7,11.31306237]
[1739772631159,3.056,2680.8,2680.4,3.2078]
[1739772631458,0.74597,2680.7,2680.4,3.2078]
[1739772631854,3.056,2680.8,2680.4,3.2078]
[1739772632056,0.74602,2680.5,2680.4,3.2078]
[1739772632457,0.74605,2680.4,2680.3,0.00559775]
[1739772632757,3.21339775,2680.9,2680.3,0.00559775]
[1739772632960,0.00559775,2680.9,2680.3,6.49235548]
[1739772633156,0.00559775,2680.9,2680.6,3.2078]
[1739772633352,0.00559775,2680.9,2680.7,0.74595]
[1739772633552,0.00559775,2680.9,2680.6,3.95377]
[1739772633758,0.00559775,2680.9,2680.7,0.74596]
[1739772633957,0.00559775,2680.9,2680.6,3.2078]
[1739772634153,0.00559775,2680.9,2680.7,0.74596]
[1739772635066,0.00559775,2680.9,2680.7,0.74594]
[1739772635270,0.00559775,2680.9,2680.8,0.74594]
[1739772635563,0.00559775,2680.9,2680.7,0.74596]
[1739772635766,0.00559775,2680.9,2680.6,3.2078]
[1739772635968,0.00559775,2680.9,2680.6,3.95378]
[1739772636163,0.00559775,2680.9,2680.6,3.2078]
[1739772636857,0.00559775,2680.9,2680.6,3.95379]
[1739772637267,0.75151775,2680.9,2680.6,3.2078]
[1739772637466,0.75151775,2680.9,2680.4,3.2078]
[1739772637467,0.00559775,2680.9,2680.4,3.2078]
[1739772637768,3.2078,2680.6,2680.3,0.00559775]
[1739772638064,0.74605,2680.4,2680.3,0.00559775]
[1739772638661,41.54605,2680.4,2680.3,0.00559775]
[1739772639364,40.8,2680.4,2679.6,0.74626]
[1739772639565,0.74613,2680.2,2679.6,0.74626]
[1739772639860,0.74615,2680.1,2679.5,3.95408]
[1739772640065,0.74617,2680.0,2679.5,3.2078]
[1739772640266,0.572,2679.9,2679.5,3.2078]
[1739772640470,0.572,2679.9,2679.5,3.21339775]
[1739772640876,1.1328,2679.9,2679.5,3.21339775]
[1739772642170,1.87899,2679.9,2679.5,3.21339775]
[1739772642567,0.5547,2679.8,2679.5,3.21339775]
[1739772643072,0.74625,2679.7,2679.5,3.21339775]
[1739772643771,3.0537,2679.8,2679.5,3.21339775]
[1739772645377,3.0537,2679.8,2679.5,3.95968775]
[1739772645876,3.0537,2679.8,2679.5,3.21339775]
[1739772646377,3.79993,2679.8,2679.5,3.21339775]
[1739772646676,3.0537,2679.8,2679.5,3.21339775]
[1739772646977,3.0537,2679.8,2679.5,3.95968775]
[1739772647276,3.0537,2679.8,2679.5,3.21339775]
[1739772647771,3.0537,2679.8,2679.6,0.74626]
[1739772647976,2.496,2680.1,2679.5,3.21339775]
[1739772648178,1.1144,2680.0,2679.5,3.95967775]
[1739772648378,1.86057,2680.0,2679.5,3.95967775]
[1739772648781,1.86058,2680.0,2679.5,3.95967775]
[1739772649079,0.74619,2679.9,2679.5,3.95967775]
[1739772649271,1.1144,2680.0,2679.5,3.21339775]
[1739772649576,1.86056,2680.0,2679.6,0.74626]
[1739772649775,3.2078,2680.2,2679.8,3.2078]
[1739772649964,3.2078,2680.2,2679.8,6.48675773]
[1739772649965,5.7048,2680.2,2679.8,6.48675773]
[1739772650168,3.0903,2680.4,2680.2,0.74609]
[1739772650369,3.0903,2680.4,2679.9,3.7907]
[1739772650568,3.0903,2680.4,2680.2,3.2078]
[1739772651171,3.0903,2680.4,2680.3,0.74608]
[1739772651372,40.8,2680.6,2680.3,0.74608]
[1739772651573,3.8011,2680.8,2680.3,0.5716]
[1739772651774,3.8011,2680.8,2680.4,0.74603]
[1739772651972,4.54706,2680.8,2680.4,0.74603]
[1739772652172,0.74598,2680.7,2680.3,1.31766]
[1739772652372,0.74601,2680.6,2680.3,0.5716]
[1739772652773,0.74598,2680.7,2680.3,0.5716]
[1739772653078,0.74601,2680.6,2680.3,0.5716]
[1739772653677,44.6011,2680.8,2680.3,0.5716]
[1739772653978,47.88005773,2680.8,2680.2,3.2078]
[1739772654173,0.74608,2680.4,2679.9,6.8463]
[1739772654381,0.5911,2680.3,2679.9,4.3433]
[1739772654576,1.1364,2680.3,2679.9,4.3433]
[1739772655179,1.1364,2680.3,2680.2,3.2078]
[1739772656278,2.504,2680.5,2680.2,3.2078]
[1739772656782,0.74607,2680.4,2680.2,3.2078]
[1739772657182,2.504,2680.5,2680.2,3.2078]
[1739772657376,0.74608,2680.3,2679.9,4.3433]
[1739772657775,0.74607,2680.4,2679.9,5.08948]
[1739772658073,2.504,2680.5,2679.9,5.08948]
[1739772658378,2.504,2680.5,2679.9,4.3433]
[1739772658579,3.25004,2680.5,2680.0,0.74616]
[1739772658879,3.25004,2680.5,2679.9,4.3433]
[1739772658880,2.504,2680.5,2679.9,4.3433]
[1739772659073,0.74606,2680.4,2679.9,5.08949]
[1739772659378,2.504,2680.5,2679.9,4.3433]
[1739772659778,0.74611,2680.2,2679.9,4.3433]
[1739772660082,8.99075773,2680.5,2679.9,3.2078]
[1739772660278,6.3098,2680.5,2680.0,0.5536]
[1739772660478,0.74605,2680.4,2680.0,0.5536]
[1739772660796,6.3098,2680.5,2680.0,0.5536]
[1739772660981,0.7461,2680.3,2680.0,0.5536]
[1739772661482,6.3098,2680.5,2679.9,3.2078]
[1739772661679,6.3098,2680.5,2679.9,3.95398]
[1739772661882,0.74606,2680.4,2679.9,3.95398]
[1739772662185,6.3098,2680.5,2680.1,0.74612]
[1739772662885,3.8058,2680.5,2680.1,0.74613]
[1739772663180,6.3068,2680.5,2680.1,0.74612]
[1739772663386,6.3068,2680.5,2679.9,3.2078]
[1739772663586,6.3068,2680.5,2680.2,0.74609]
[1739772663782,6.3068,2680.5,2680.1,0.74611]
[1739772664085,6.3068,2680.5,2680.0,0.74614]
[1739772664086,7.05284,2680.5,2680.0,0.74614]
[1739772664287,6.3068,2680.5,2680.0,0.74614]
[1739772664485,6.3068,2680.5,2680.1,0.74613]
[1739772664690,6.3068,2680.5,2679.9,3.2078]
[1739772664981,1.86513,2680.4,2679.6,3.2078]
[1739772665186,3.27895773,2680.2,2679.6,3.2078]
[1739772665387,0.74616,2680.0,2679.6,3.2078]
[1739772665780,0.5565,2679.9,2679.6,3.2078]
[1739772666288,1.30269,2679.9,2679.6,3.2078]
[1739772666788,0.5565,2679.9,2679.6,3.2078]
[1739772666988,1.30271,2679.9,2679.6,3.2078]
[1739772667194,1.30271,2679.9,2679.5,0.00559775]
[1739772667195,0.74626,2679.7,2679.5,0.00559775]
[1739772667487,4.58166773,2679.9,2679.5,0.00559775]
[1739772667683,3.83545773,2679.9,2679.5,0.00559775]
[1739772667987,0.5565,2679.9,2679.5,0.00559775]
[1739772668678,0.74627,2679.6,2679.5,0.00559775]
[1739772668880,5.77695773,2679.6,2679.5,0.00559775]
[1739772669389,43.298,2679.6,2679.5,0.46108433]
[1739772669789,44.04427,2679.6,2679.5,0.46108433]
[1739772670488,43.298,2679.6,2679.5,0.46108433]
[1739772670684,44.04427,2679.6,2679.5,0.46108433]
[1739772671282,50.53102773,2679.6,2679.5,0.46108433]
[1739772671486,0.74641,2679.2,2679.0,3.2078]
[1739772671786,0.5972,2679.1,2679.0,3.2078]
[1739772671992,1.34361,2679.1,2679.0,3.2078]
[1739772673593,0.5972,2679.1,2679.0,3.2078]
[1739772673985,1.34361,2679.1,2679.0,3.2078]
[1739772675096,0.5972,2679.1,2679.0,3.2078]
[1739772675293,0.5972,2679.1,2678.8,0.00559775]
[1739772675493,3.27895773,2679.0,2678.8,0.00559775]
[1739772675693,1.85777,2678.9,2678.8,0.00559775]
[1739772676895,1.85777,2678.9,2678.4,3.2078]
[1739772676896,0.74658,2678.5,2678.4,3.2078]
[1739772677096,0.74658,2678.5,2678.0,3.2078]
[1739772677297,0.5447,2678.4,2678.0,3.2078]
[1739772677798,0.74666,2678.2,2678.0,3.2078]
[1739772678100,0.5762,2678.3,2677.9,3.2078]
[1739772678101,1.1543,2678.3,2677.9,3.2078]
[1739772678292,0.7467,2678.1,2677.9,3.2078]
[1739772678493,4.43325773,2678.3,2677.9,3.2078]
[1739772678693,41.54666,2678.2,2677.9,3.2078]
[1739772678896,40.8,2678.2,2677.9,3.2078]
[1739772679088,43.301,2678.2,2677.9,3.2078]
[1739772679399,0.74672,2678.0,2677.8,0.0037318]
[1739772679986,43.301,2678.2,2677.8,0.0037318]
[1739772681999,2.501,2678.2,2677.9,0.74674]
[1739772682189,2.501,2678.2,2677.8,0.0037318]
[1739772682386,2.501,2678.2,2677.9,0.74673]
[1739772682795,2.501,2678.2,2677.9,3.95453]
[1739772683401,2.498,2678.2,2678.1,0.74668]
[1739772683699,2.498,2678.3,2677.9,3.2078]
[1739772683894,0.5729,2678.1,2677.9,3.2078]
[1739772684193,0.5729,2678.1,2677.8,0.0037318]
[1739772684595,0.74674,2678.0,2677.8,0.0037318]
[1739772684796,0.5729,2678.1,2677.9,3.2078]
[1739772684996,0.5729,2678.1,2678.0,0.74672]
[1739772685195,3.0836,2678.3,2678.2,0.74665]
[1739772685196,2.502,2678.3,2678.2,0.74665]
[1739772685402,2.502,2678.3,2678.0,0.5782]
[1739772685794,2.502,2678.3,2678.2,0.74666]
[1739772686002,2.502,2678.3,2678.2,3.95446]
[1739772686202,0.5729,2678.5,2678.2,3.2078]
[1739772686401,0.5729,2678.5,2678.3,0.74663]
[1739772686605,0.5729,2678.5,2678.3,1.30563]
[1739772686803,0.5729,2678.5,2678.3,0.559]
[1739772687706,0.5729,2678.5,2678.3,1.30562]
[1739772688405,0.5729,2678.5,2678.3,0.559]
[1739772688594,3.0436,2678.8,2678.3,0.559]
[1739772688798,3.0436,2678.8,2678.5,0.74657]
[1739772689305,3.0436,2678.8,2678.3,0.559]
[1739772689306,0.74654,2678.7,2678.3,0.559]
[1739772689505,0.74654,2678.7,2678.3,1.30563]
[1739772689709,0.74656,2678.6,2678.3,0.559]
[1739772690009,0.74658,2678.5,2678.3,0.559]
[1739772690304,0.74663,2678.3,2678.2,3.2078]
[1739772690506,0.74663,2678.3,2678.0,0.5782]
[1739772690507,6.48675773,2678.6,2678.0,0.5782]
[1739772690705,0.542,2678.5,2678.0,0.5782]
[1739772690902,2.5,2678.4,2678.2,0.74664]
[1739772691297,40.8,2678.3,2678.2,0.74664]
[1739772691610,2.5,2678.4,2678.3,0.74663]
[1739772692005,43.3,2678.4,2678.2,0.74665]
[1739772692505,2.5,2678.4,2678.3,0.74663]
[1739772693606,40.8,2678.5,2678.2,3.2078]
[1739772693909,40.8,2678.5,2678.4,0.74661]
[1739772694111,40.8,2678.5,2678.3,0.74662]
[1739772694305,40.8,2678.5,2678.3,0.74663]
[1739772694512,40.8,2678.5,2678.2,3.2078]
[1739772695111,1.2911,2678.8,2678.5,0.74657]
[1739772695310,1.2911,2678.8,2678.3,0.5608]
[1739772695311,0.5446,2678.8,2678.3,0.5608]
[1739772695507,0.5446,2678.8,2678.5,0.74658]
[1739772695710,41.3446,2678.8,2678.5,0.74658]
[1739772695908,42.0911,2678.8,2678.5,0.74658]
[1739772696213,41.3446,2678.8,2678.3,0.5608]
[1739772696414,40.8,2678.8,2678.7,0.74652]
[1739772696806,40.8,2678.8,2678.6,0.74653]
[1739772697003,40.8,2678.8,2678.7,0.74652]
[1739772697210,0.5898,2679.0,2678.6,3.2078]
[1739772697415,3.0868,2679.0,2678.8,0.74647]
[1739772697612,0.5898,2679.0,2678.9,0.74647]
[1739772697819,41.3898,2679.0,2678.9,0.74647]
[1739772698015,41.3898,2679.0,2678.7,0.5745]
[1739772698215,41.3898,2679.0,2678.8,0.74649]
[1739772698916,2.497,2679.2,2679.0,0.74641]
[1739772699117,2.497,2679.2,2678.7,0.5745]
[1739772699321,40.8,2679.1,2678.9,0.74644]